[Event "Mistrovství Čech mládeže 2023 - HD12"]
[Site "Harrachov, Czech Republic"]
[Date "2023.10.21"]
[Round "1.6"]
[White "Kroulík, Štěpán"]
[Black "Vlček, Vítězslav"]
[Result "1/2-1/2"]
[TimeControl "90m + 30s"]
[WhiteElo "1454"]
[BlackElo "1120"]

1. e4 {[%clk 01:30:59]} c5 {[%clk 01:30:31]} {[%emt 00:00:28]} 2. Nf3 {[%clk
01:31:23]} {[%emt 00:00:07]} d6 {[%clk 01:30:10]} {[%emt 00:00:50]} 3. c3
{[%clk 01:31:09]} {[%emt 00:00:46]} Nc6 {[%clk 01:29:29]} {[%emt 00:01:10]} 4.
Be2 {[%clk 01:31:26]} {[%emt 00:00:14]} Nf6 {[%clk 01:28:53]} {[%emt 00:01:05]}
5. d4 {[%clk 01:31:39]} {[%emt 00:00:18]} cxd4 {[%clk 01:25:20]} {[%emt
00:04:02]} 6. cxd4 {[%clk 01:31:52]} {[%emt 00:00:17]} g6 {[%clk 01:21:31]}
{[%emt 00:04:19]} 7. O-O {[%clk 01:31:31]} {[%emt 00:00:51]} Bg7 {[%clk
01:21:21]} {[%emt 00:00:39]} 8. Be3 {[%clk 01:30:07]} {[%emt 00:01:55]} O-O
{[%clk 01:21:09]} {[%emt 00:00:41]} 9. Nc3 {[%clk 01:30:06]} {[%emt 00:00:32]}
a6 {[%clk 01:18:06]} {[%emt 00:03:34]} 10. Rc1 {[%clk 01:28:12]} {[%emt
00:02:24]} Bg4 {[%clk 01:14:59]} {[%emt 00:03:36]} 11. h3 {[%clk 01:27:40]}
{[%emt 00:01:03]} Bxf3 {[%clk 01:14:26]} {[%emt 00:01:03]} 12. Bxf3 {[%clk
01:27:49]} {[%emt 00:00:21]} Rc8 {[%clk 01:12:15]} {[%emt 00:02:40]} 13. Qd2
{[%clk 01:24:56]} {[%emt 00:03:23]} Na5 {[%clk 01:05:14]} {[%emt 00:07:31]} 14.
b3 {[%clk 01:23:34]} {[%emt 00:01:52]} Rc7 {[%clk 01:01:52]} {[%emt 00:03:52]}
15. Na4 {[%clk 01:23:31]} {[%emt 00:00:34]} b5 {[%clk 00:56:03]} {[%emt
00:06:19]} 16. Rxc7 {[%clk 01:22:41]} {[%emt 00:01:20]} Qxc7 {[%clk 00:55:41]}
{[%emt 00:00:51]} 17. Rc1 {[%clk 01:22:21]} {[%emt 00:00:50]} Qd8 {[%clk
00:54:53]} {[%emt 00:01:17]} 18. Nb2 {[%clk 01:21:38]} {[%emt 00:01:14]} e5
{[%clk 00:43:38]} {[%emt 00:11:45]} 19. dxe5 {[%clk 01:21:14]} {[%emt
00:00:55]} dxe5 {[%clk 00:43:44]} {[%emt 00:00:23]} 20. Qxd8 {[%clk 01:21:26]}
{[%emt 00:00:18]} Rxd8 {[%clk 00:43:24]} {[%emt 00:00:50]} 21. Bb6 {[%clk
01:20:14]} {[%emt 00:01:42]} Rd2 {[%clk 00:42:04]} {[%emt 00:01:49]} 22. Bxa5
{[%clk 01:19:21]} {[%emt 00:01:24]} Rxb2 {[%clk 00:42:17]} {[%emt 00:00:17]} 23.
Rc8+ {[%clk 01:17:55]} {[%emt 00:01:57]} Bf8 {[%clk 00:40:01]} {[%emt
00:02:45]} 24. Bb4 {[%clk 01:17:57]} {[%emt 00:00:29]} Nd7 {[%clk 00:36:22]}
{[%emt 00:04:07]} 25. Bg4 {[%clk 01:15:23]} {[%emt 00:03:05]} Kg7 {[%clk
00:34:45]} {[%emt 00:02:07]} 26. Bc3 {[%clk 01:14:45]} {[%emt 00:01:09]} Rb1+
{[%clk 00:33:05]} {[%emt 00:02:09]} 27. Kh2 {[%clk 01:14:40]} {[%emt 00:00:35]}
Nf6 {[%clk 00:30:01]} {[%emt 00:03:34]} 28. Bxe5 {[%clk 01:14:32]} {[%emt
00:00:38]} Ba3 {[%clk 00:27:32]} {[%emt 00:02:50]} 29. Rc6 {[%clk 01:14:28]}
{[%emt 00:00:43]} Bb2 {[%clk 00:27:47]} {[%emt 00:00:15]} 30. Bxf6+ {[%clk
01:12:43]} {[%emt 00:02:15]} Bxf6 {[%clk 00:27:45]} {[%emt 00:00:32]} 31. f4
{[%clk 01:12:05]} {[%emt 00:01:08]} Re1 {[%clk 00:18:36]} {[%emt 00:09:39]} 32.
e5 {[%clk 01:11:33]} {[%emt 00:01:03]} Bh4 {[%clk 00:18:57]} {[%emt 00:00:09]}
33. Rxa6 {[%clk 01:11:13]} {[%emt 00:00:49]} b4 {[%clk 00:14:26]} {[%emt
00:05:01]} 34. Ra7 {[%clk 01:10:38]} {[%emt 00:01:05]} Re3 {[%clk 00:12:31]}
{[%emt 00:02:25]} 35. Bf3 {[%clk 01:10:44]} {[%emt 00:00:24]} h5 {[%clk
00:11:01]} {[%emt 00:02:00]} 36. Rb7 {[%clk 01:10:22]} {[%emt 00:00:52]} Be1
{[%clk 00:10:55]} {[%emt 00:00:36]} 37. Rc7 {[%clk 01:06:41]} {[%emt 00:04:12]}
h4 {[%clk 00:10:28]} {[%emt 00:00:57]} 38. Rc1 {[%clk 01:05:20]} {[%emt
00:01:48]} Bg3+ {[%clk 00:10:33]} {[%emt 00:00:26]} 39. Kg1 {[%clk 01:05:36]}
{[%emt 00:00:14]} Bxf4 {[%clk 00:10:38]} {[%emt 00:00:26]} 40. Rf1 {[%clk
01:03:14]} {[%emt 00:02:52]} 1/2-1/2

[Event "Mistrovství Čech mládeže 2023 - HD12"]
[Site "Harrachov, Czech Republic"]
[Date "2023.10.21"]
[Round "1.7"]
[White "Melicharová, Veronika"]
[Black "Kubát, Jonáš"]
[Result "0-1"]
[TimeControl "90m + 30s"]
[WhiteElo "1108"]
[BlackElo "1423"]

1. d4 {[%clk 01:30:54]} {[%emt 00:00:05]} d5 {[%clk 01:30:53]} {[%emt
00:00:07]} 2. Nf3 {[%clk 01:31:06]} {[%emt 00:00:18]} Nf6 {[%clk 01:31:14]}
{[%emt 00:00:09]} 3. Bf4 {[%clk 01:30:55]} {[%emt 00:00:41]} c5 {[%clk
01:30:13]} {[%emt 00:01:32]} 4. e3 {[%clk 01:30:03]} {[%emt 00:01:21]} Nc6
{[%clk 01:30:16]} {[%emt 00:00:27]} 5. Nc3 {[%clk 01:25:46]} {[%emt 00:04:46]}
Bg4 {[%clk 01:28:49]} {[%emt 00:01:57]} 6. Be2 {[%clk 01:23:29]} {[%emt
00:02:48]} e6 {[%clk 01:26:51]} {[%emt 00:02:28]} 7. O-O {[%clk 01:19:45]}
{[%emt 00:04:14]} Nh5 {[%clk 01:19:21]} {[%emt 00:07:59]} 8. Bg3 {[%clk
01:17:03]} {[%emt 00:03:13]} Nxg3 {[%clk 01:17:25]} {[%emt 00:02:25]} 9. fxg3
{[%clk 01:17:16]} {[%emt 00:00:16]} cxd4 {[%clk 01:15:18]} {[%emt 00:02:40]} 10.
exd4 {[%clk 01:16:22]} {[%emt 00:01:23]} Bxf3 {[%clk 01:15:03]} {[%emt
00:00:44]} 11. Rxf3 {[%clk 01:15:51]} {[%emt 00:01:01]} Qb6 {[%clk 01:12:48]}
{[%emt 00:02:45]} 12. Bb5 {[%clk 01:15:05]} {[%emt 00:01:17]} Bb4 {[%clk
01:10:05]} {[%emt 00:03:13]} 13. Bxc6+ {[%clk 01:13:39]} {[%emt 00:01:55]} bxc6
{[%clk 01:08:32]} {[%emt 00:02:03]} 14. Ne2 {[%clk 01:12:43]} {[%emt 00:01:26]}
O-O {[%clk 01:06:13]} {[%emt 00:02:49]} 15. Qd3 {[%clk 01:09:41]} {[%emt
00:03:33]} e5 {[%clk 01:05:00]} {[%emt 00:01:43]} 16. Qe3 {[%clk 01:06:36]}
{[%emt 00:03:33]} h6 {[%clk 01:03:52]} {[%emt 00:01:39]} 17. c3 {[%emt
00:06:02]} exd4 {[%clk 01:02:37]} {[%emt 00:01:42]} 18. Qxd4 {[%clk 00:59:59]}
{[%emt 00:01:39]} Bc5 {[%clk 01:02:39]} {[%emt 00:00:27]} 0-1

[Event "Mistrovství Čech mládeže 2023 - HD12"]
[Site "Harrachov, Czech Republic"]
[Date "2023.10.21"]
[Round "1.8"]
[White "Rendl, Luboš"]
[Black "Junová, Alexandra"]
[Result "1-0"]
[TimeControl "90m + 30s"]
[WhiteElo "1420"]
[BlackElo "1102"]

1. e4 {[%clk 01:28:36]} {[%emt 00:00:42]} c5 {[%clk 01:29:52]} {[%emt
00:01:08]} 2. Nc3 {[%clk 01:27:56]} {[%emt 00:01:10]} d6 {[%clk 01:29:59]}
{[%emt 00:00:22]} 3. f4 {[%clk 01:26:35]} {[%emt 00:01:52]} g6 {[%clk
01:29:25]} {[%emt 00:01:04]} 4. Nf3 {[%clk 01:26:24]} {[%emt 00:00:41]} Bg4
{[%clk 01:29:27]} {[%emt 00:00:28]} 5. Bc4 {[%clk 01:20:56]} {[%emt 00:05:58]}
Bg7 {[%clk 01:29:00]} {[%emt 00:00:56]} 6. Bxf7+ {[%clk 01:19:48]} {[%emt
00:01:39]} Kd7 {[%clk 01:28:48]} {[%emt 00:00:42]} 7. h3 {[%clk 01:18:17]}
{[%emt 00:02:00]} Bxf3 {[%clk 01:27:52]} {[%emt 00:01:26]} 8. Qxf3 {[%clk
01:18:20]} {[%emt 00:00:27]} h5 {[%clk 01:27:20]} {[%emt 00:01:02]} 9. Bxg6
{[%clk 01:17:05]} {[%emt 00:01:46]} Nf6 {[%clk 01:26:52]} {[%emt 00:00:58]} 10.
e5 {[%clk 01:16:49]} {[%emt 00:00:46]} Ne8 {[%clk 01:25:48]} {[%emt 00:01:23]}
11. Qxb7+ {[%clk 01:16:38]} {[%emt 00:00:52]} Ke6 {[%clk 01:25:30]} {[%emt
00:00:48]} 12. f5+ {[%clk 01:16:14]} {[%emt 00:00:55]} Kxe5 {[%clk 01:25:00]}
{[%emt 00:00:59]} 13. d4+ {[%clk 01:16:08]} {[%emt 00:00:36]} cxd4 {[%clk
01:24:50]} {[%emt 00:00:40]} 14. Qd5+ {[%clk 01:16:31]} {[%emt 00:00:07]} Kf6
{[%clk 01:23:40]} {[%emt 00:01:40]} 15. Qe6# {[%clk 01:16:49]} {[%emt
00:00:10]} 1-0

[Event "Mistrovství Čech mládeže 2023 - HD12"]
[Site "Harrachov, Czech Republic"]
[Date "2023.10.21"]
[Round "1.9"]
[White "Melicharová, Tereza"]
[Black "Málek, Daniel"]
[Result "0-1"]
[TimeControl "90m + 30s"]
[WhiteElo "1088"]
[BlackElo "1404"]

1. f4 {[%clk 01:30:53]} {[%emt 00:00:06]} d5 {[%clk 01:30:06]} {[%emt
00:00:54]} 2. c4 {[%clk 01:30:36]} {[%emt 00:00:47]} d4 {[%clk 01:29:59]}
{[%emt 00:00:38]} 3. e3 {[%clk 01:30:16]} {[%emt 00:00:48]} dxe3 {[%clk
01:30:09]} {[%emt 00:00:21]} 4. dxe3 {[%clk 01:30:16]} {[%emt 00:00:29]} Qxd1+
{[%clk 01:30:25]} {[%emt 00:00:14]} 5. Kxd1 {[%clk 01:30:08]} {[%emt 00:00:39]}
Nc6 {[%clk 01:30:36]} {[%emt 00:00:19]} 6. Nf3 {[%clk 01:29:20]} {[%emt
00:01:17]} Bf5 {[%clk 01:30:45]} {[%emt 00:00:23]} 7. Nc3 {[%clk 01:28:49]}
{[%emt 00:01:01]} O-O-O+ {[%clk 01:30:58]} {[%emt 00:00:17]} 8. Bd2 {[%clk
01:28:07]} {[%emt 00:01:10]} Nf6 {[%clk 01:30:00]} {[%emt 00:01:30]} 9. c5
{[%clk 01:28:17]} {[%emt 00:01:57]} e6 {[%clk 01:29:21]} {[%emt 00:00:31]} 10.
Ne5 {[%clk 01:22:49]} {[%emt 00:05:57]} Nxe5 {[%clk 01:29:00]} {[%emt
00:00:52]} 11. fxe5 {[%clk 01:22:33]} {[%emt 00:00:47]} Ng4 {[%clk 01:28:55]}
{[%emt 00:00:35]} 12. Ke1 {[%clk 01:19:31]} {[%emt 00:03:30]} Bxc5 {[%clk
01:28:52]} {[%emt 00:00:35]} 13. Rd1 {[%clk 01:10:31]} {[%emt 00:09:29]} Nxe3
{[%clk 01:28:38]} {[%emt 00:00:44]} 14. Bxe3 {[%clk 01:09:19]} {[%emt
00:01:42]} Bxe3 {[%clk 01:28:55]} {[%emt 00:00:14]} 15. a4 {[%clk 01:06:09]}
{[%emt 00:03:41]} Rxd1+ {[%clk 01:28:46]} {[%emt 00:00:39]} 16. Nxd1 {[%clk
01:06:12]} {[%emt 00:00:27]} Bf4 {[%clk 01:29:00]} {[%emt 00:00:15]} 17. Nf2
{[%clk 01:05:51]} {[%emt 00:00:51]} Bxe5 {[%clk 01:29:08]} {[%emt 00:00:22]} 18.
a5 {[%clk 01:05:51]} {[%emt 00:00:31]} Bxb2 {[%clk 01:28:45]} {[%emt 00:00:51]}
19. a6 {[%clk 01:05:50]} {[%emt 00:00:33]} b6 {[%clk 01:28:51]} {[%emt
00:00:24]} 20. Nd3 {[%clk 01:02:56]} {[%emt 00:03:23]} Bc3+ {[%clk 01:28:52]}
{[%emt 00:00:29]} 21. Kd1 {[%clk 01:02:47]} {[%emt 00:00:39]} Rd8 {[%clk
01:29:09]} {[%emt 00:00:11]} 22. Kc2 {[%clk 01:02:12]} {[%emt 00:01:08]} Ba5
{[%clk 01:29:15]} {[%emt 00:00:24]} 23. Be2 {[%clk 01:01:15]} {[%emt 00:01:26]}
c5 {[%clk 01:29:25]} {[%emt 00:00:21]} 24. g4 {[%clk 01:00:27]} {[%emt
00:01:18]} Be4 {[%clk 01:29:41]} {[%emt 00:00:14]} 25. Rd1 {[%clk 00:59:34]}
{[%emt 00:01:20]} c4 {[%clk 01:30:05]} {[%emt 00:00:08]} 26. h3 {[%clk
00:59:15]} {[%emt 00:00:50]} cxd3+ {[%clk 01:30:27]} {[%emt 00:00:08]} 27. Bxd3
{[%clk 00:59:16]} {[%emt 00:00:29]} Rxd3 {[%clk 01:30:50]} {[%emt 00:00:07]} 28.
Rxd3 {[%clk 00:59:30]} {[%emt 00:00:16]} Bxd3+ {[%clk 01:31:15]} {[%emt
00:00:05]} 29. Kxd3 {[%clk 00:59:46]} {[%emt 00:00:13]} b5 {[%clk 01:31:26]}
{[%emt 00:00:20]} 30. Kc2 {[%clk 00:59:44]} {[%emt 00:00:30]} f5 {[%clk
01:31:44]} {[%emt 00:00:13]} 31. gxf5 {[%clk 00:59:51]} {[%emt 00:00:22]} exf5
{[%clk 01:32:10]} {[%emt 00:00:05]} 32. Kd3 {[%clk 00:59:50]} {[%emt 00:00:31]}
b4 {[%clk 01:32:21]} {[%emt 00:00:19]} 33. Kc4 {[%clk 00:59:10]} {[%emt
00:01:11]} f4 {[%clk 01:32:30]} {[%emt 00:00:21]} 34. Kd3 {[%clk 00:59:26]}
{[%emt 00:00:13]} b3 {[%clk 01:32:47]} {[%emt 00:00:14]} 35. h4 {[%clk
00:58:37]} {[%emt 00:01:18]} f3 {[%clk 01:33:10]} {[%emt 00:00:07]} 36. h5
{[%clk 00:58:53]} {[%emt 00:00:14]} f2 {[%clk 01:33:32]} {[%emt 00:00:08]} 37.
Ke2 {[%clk 00:59:14]} {[%emt 00:00:10]} b2 {[%clk 01:33:54]} {[%emt 00:00:08]}
38. h6 {[%clk 00:59:07]} {[%emt 00:00:37]} gxh6 {[%clk 01:34:12]} {[%emt
00:00:12]} 39. Kxf2 {[%clk 00:59:24]} {[%emt 00:00:12]} b1=Q {[%clk 01:34:28]}
{[%emt 00:00:15]} 40. Kg3 {[%clk 00:59:29]} {[%emt 00:00:24]} Qf5 {[%clk
01:34:20]} {[%emt 00:00:38]} 41. Kh4 {[%clk 00:59:31]} {[%emt 00:00:24]} Be1#
{[%clk 01:34:34]} {[%emt 00:00:21]} 0-1

[Event "Mistrovství Čech mládeže 2023 - HD12"]
[Site "Harrachov, Czech Republic"]
[Date "2023.10.21"]
[Round "1.10"]
[White "Frantsev, Iegor"]
[Black "Grosser, Filip"]
[Result "1/2-1/2"]
[TimeControl "90m + 30s"]
[WhiteElo "1397"]
[BlackElo "1050"]

1. e4 {[%clk 01:30:56]} {[%emt 00:00:03]} e5 {[%clk 01:30:55]} {[%emt
00:00:06]} 2. Bc4 {[%clk 01:31:10]} {[%emt 00:00:16]} Nc6 {[%clk 01:31:05]}
{[%emt 00:00:20]} 3. Nf3 {[%clk 01:31:14]} {[%emt 00:00:25]} Nf6 {[%clk
01:31:09]} {[%emt 00:00:27]} 4. Qe2 {[%clk 01:31:21]} {[%emt 00:00:23]} Bc5
{[%clk 01:30:52]} {[%emt 00:00:47]} 5. d3 {[%clk 01:31:30]} {[%emt 00:00:22]}
d6 {[%clk 01:31:05]} {[%emt 00:00:16]} 6. c3 {[%clk 01:31:42]} {[%emt
00:00:18]} h6 {[%clk 01:28:36]} {[%emt 00:02:58]} 7. Nbd2 {[%clk 01:31:53]}
{[%emt 00:00:18]} Be6 {[%clk 01:25:19]} {[%emt 00:03:49]} 8. Bb5 {[%clk
01:31:59]} {[%emt 00:00:24]} Bd7 {[%clk 01:21:58]} {[%emt 00:03:51]} 9. h3
{[%clk 01:31:58]} {[%emt 00:00:30]} a6 {[%clk 01:17:55]} {[%emt 00:04:34]} 10.
Ba4 {[%clk 01:32:09]} {[%emt 00:00:17]} Bb6 {[%clk 01:12:37]} {[%emt 00:05:49]}
11. Nf1 {[%clk 01:32:06]} {[%emt 00:00:32]} O-O {[%clk 01:05:58]} {[%emt
00:07:10]} 12. g4 {[%clk 01:31:46]} {[%emt 00:00:50]} Nh7 {[%clk 01:00:41]}
{[%emt 00:05:48]} 13. Ng3 {[%clk 01:31:39]} {[%emt 00:00:35]} Nd4 {[%clk
00:46:35]} {[%emt 00:14:38]} 14. Nxd4 {[%clk 01:29:28]} {[%emt 00:02:40]} exd4
{[%clk 00:46:34]} {[%emt 00:00:31]} 15. Bxd7 {[%clk 01:28:09]} {[%emt
00:01:49]} Qxd7 {[%clk 00:46:58]} {[%emt 00:00:06]} 16. Nf5 {[%clk 01:27:11]}
{[%emt 00:01:28]} dxc3 {[%clk 00:41:41]} {[%emt 00:05:47]} 17. bxc3 {[%clk
01:24:52]} {[%emt 00:02:50]} Qe6 {[%clk 00:36:41]} {[%emt 00:05:30]} 18. O-O
{[%clk 01:19:37]} {[%emt 00:05:44]} d5 {[%clk 00:27:32]} {[%emt 00:09:39]} 19.
e5 {[%clk 01:08:08]} {[%emt 00:11:59]} f6 {[%clk 00:23:18]} {[%emt 00:04:45]}
20. Bf4 {[%clk 01:07:01]} {[%emt 00:01:34]} Rae8 {[%clk 00:22:09]} {[%emt
00:01:40]} 21. d4 {[%clk 01:04:06]} {[%emt 00:03:27]} c5 {[%clk 00:21:52]}
{[%emt 00:00:47]} 22. Qb2 {[%clk 01:01:46]} {[%emt 00:02:50]} Ng5 {[%clk
00:20:13]} {[%emt 00:02:09]} 23. Bxg5 {[%clk 01:01:16]} {[%emt 00:00:59]} hxg5
{[%clk 00:20:33]} {[%emt 00:00:09]} 24. Rab1 {[%clk 01:00:27]} {[%emt
00:01:20]} Ba5 {[%clk 00:18:56]} {[%emt 00:02:07]} 25. exf6 {[%clk 00:59:17]}
{[%emt 00:01:40]} Rxf6 {[%clk 00:18:31]} {[%emt 00:00:55]} 26. Qd2 {[%clk
00:53:35]} {[%emt 00:06:12]} Rxf5 {[%clk 00:14:43]} {[%emt 00:04:19]} 27. gxf5
{[%clk 00:52:11]} {[%emt 00:01:53]} Qxf5 {[%clk 00:15:05]} {[%emt 00:00:08]} 28.
Rfe1 {[%clk 00:51:52]} {[%emt 00:00:47]} Rxe1+ {[%clk 00:14:59]} {[%emt
00:00:38]} 29. Rxe1 {[%clk 00:52:08]} {[%emt 00:00:15]} g4 {[%clk 00:14:07]}
{[%emt 00:01:21]} 30. Re5 {[%clk 00:41:07]} {[%emt 00:11:29]} Qg6 {[%clk
00:12:18]} {[%emt 00:02:21]} 31. h4 {[%clk 00:29:55]} {[%emt 00:11:41]} Bc7
{[%clk 00:12:04]} {[%emt 00:00:46]} 32. Re3 {[%clk 00:18:17]} {[%emt 00:12:07]}
Bf4 {[%clk 00:09:59]} {[%emt 00:02:35]} 33. dxc5 {[%clk 00:17:04]} {[%emt
00:01:44]} Bxe3 {[%clk 00:09:35]} {[%emt 00:00:53]} 34. Qxd5+ {[%clk 00:17:03]}
{[%emt 00:00:31]} Kh7 {[%clk 00:09:21]} {[%emt 00:00:44]} 35. fxe3 {[%clk
00:17:15]} {[%emt 00:00:18]} Qb1+ {[%clk 00:09:37]} {[%emt 00:00:15]} 36. Kf2
{[%clk 00:15:07]} {[%emt 00:02:36]} Qb2+ {[%clk 00:09:27]} {[%emt 00:00:40]} 37.
Kg3 {[%clk 00:15:09]} {[%emt 00:00:27]} Qxc3 {[%clk 00:09:33]} {[%emt
00:00:26]} 38. Kxg4 {[%clk 00:12:39]} {[%emt 00:03:00]} Qxe3 {[%clk 00:09:06]}
{[%emt 00:00:56]} 39. h5 {[%clk 00:09:24]} {[%emt 00:03:45]} Qe2+ {[%clk
00:08:59]} {[%emt 00:00:37]} 40. Kf4 {[%clk 00:08:35]} {[%emt 00:01:18]} Qh2+
{[%clk 00:09:09]} {[%emt 00:00:22]} 1/2-1/2

[Event "Mistrovství Čech mládeže 2023 - HD12"]
[Site "Harrachov, Czech Republic"]
[Date "2023.10.21"]
[Round "1.11"]
[White "Kammová, Natálie"]
[Black "Ježek, Jiří"]
[Result "0-1"]
[TimeControl "90m + 30s"]
[WhiteElo "1045"]
[BlackElo "1392"]

1. Nf3 {[%clk 01:30:50]} {[%emt 00:00:09]} d5 {[%clk 01:29:32]} {[%emt
00:01:29]} 2. d4 {[%clk 01:30:31]} {[%emt 00:00:48]} Nf6 {[%clk 01:29:18]}
{[%emt 00:00:45]} 3. Bf4 {[%clk 01:30:32]} {[%emt 00:00:27]} e6 {[%clk
01:28:52]} {[%emt 00:00:59]} 4. e3 {[%clk 01:30:39]} {[%emt 00:00:21]} Bd6
{[%clk 01:27:20]} {[%emt 00:02:03]} 5. Bg3 {[%clk 01:25:48]} {[%emt 00:05:20]}
O-O {[%clk 01:26:41]} {[%emt 00:01:10]} 6. Nc3 {[%clk 01:25:13]} {[%emt
00:01:05]} c6 {[%clk 01:23:51]} {[%emt 00:03:21]} 7. Bd3 {[%clk 01:24:34]}
{[%emt 00:01:09]} Be7 {[%clk 01:19:20]} {[%emt 00:05:00]} 8. O-O {[%clk
01:24:03]} {[%emt 00:01:01]} Nbd7 {[%clk 01:19:32]} {[%emt 00:00:18]} 9. Ng5
{[%clk 01:24:00]} {[%emt 00:00:31]} h6 {[%clk 01:19:36]} {[%emt 00:00:28]} 10.
Nf3 {[%clk 01:23:40]} {[%emt 00:00:49]} Re8 {[%clk 01:18:25]} {[%emt 00:01:42]}
11. Ne5 {[%clk 01:22:14]} {[%emt 00:01:56]} Nxe5 {[%clk 01:16:39]} {[%emt
00:02:16]} 12. dxe5 {[%clk 01:22:10]} {[%emt 00:00:34]} Nd7 {[%clk 01:16:55]}
{[%emt 00:00:15]} 13. Bf4 {[%clk 01:21:26]} {[%emt 00:01:14]} Bg5 {[%clk
01:14:16]} {[%emt 00:03:09]} 14. Ne2 {[%clk 01:20:48]} {[%emt 00:01:07]} Bxf4
{[%clk 01:12:36]} {[%emt 00:02:11]} 15. Nxf4 {[%clk 01:20:35]} {[%emt
00:00:42]} Nxe5 {[%clk 01:12:34]} {[%emt 00:00:32]} 16. Nh5 {[%clk 01:18:22]}
{[%emt 00:02:42]} Nxd3 {[%clk 01:09:40]} {[%emt 00:03:26]} 17. Qg4 {[%clk
01:18:12]} {[%emt 00:00:38]} Qg5 {[%clk 01:07:29]} {[%emt 00:02:43]} 18. Qxg5
{[%clk 01:18:03]} {[%emt 00:00:39]} hxg5 {[%clk 01:07:30]} {[%emt 00:00:28]} 19.
cxd3 {[%clk 01:18:24]} {[%emt 00:00:09]} Bd7 {[%clk 01:04:28]} {[%emt
00:03:33]} 20. Rfd1 {[%clk 01:18:10]} {[%emt 00:00:44]} Rac8 {[%clk 01:03:12]}
{[%emt 00:01:46]} 21. e4 {[%clk 01:18:12]} {[%emt 00:00:28]} Rc7 {[%clk
01:00:49]} {[%emt 00:02:52]} 22. exd5 {[%clk 01:18:11]} {[%emt 00:00:31]} cxd5
{[%clk 01:00:55]} {[%emt 00:00:24]} 23. d4 {[%clk 01:18:35]} {[%emt 00:00:07]}
Rc2 {[%clk 01:00:06]} {[%emt 00:01:18]} 24. Rd3 {[%emt 00:04:13]} Rec8 {[%clk
00:56:38]} 25. h3 {[%clk 01:18:48]} {[%emt 00:00:33]} f6 {[%clk 00:44:00]}
{[%emt 00:13:07]} 26. Rg3 {[%clk 01:18:48]} {[%emt 00:00:30]} Kf7 {[%clk
00:42:28]} {[%emt 00:02:02]} 27. h4 {[%clk 01:17:48]} {[%emt 00:01:30]} Rh8
{[%clk 00:40:38]} {[%emt 00:02:20]} 28. Nxg7 {[%clk 01:15:42]} {[%emt
00:02:36]} Kxg7 {[%clk 00:40:02]} {[%emt 00:01:06]} 29. hxg5 {[%clk 01:16:07]}
{[%emt 00:00:05]} fxg5 {[%clk 00:39:35]} {[%emt 00:00:58]} 30. Rxg5+ {[%clk
01:16:27]} {[%emt 00:00:10]} Kf6 {[%clk 00:39:57]} {[%emt 00:00:08]} 31. f4
{[%clk 01:16:38]} {[%emt 00:00:18]} Rxb2 {[%clk 00:38:27]} {[%emt 00:02:00]} 32.
g4 {[%clk 01:16:22]} {[%emt 00:00:46]} Rbh2 {[%clk 00:37:03]} {[%emt 00:01:54]}
33. Rf1 {[%clk 01:15:55]} {[%emt 00:00:57]} Rh1+ {[%clk 00:36:50]} {[%emt
00:00:43]} 34. Kf2 {[%clk 01:16:04]} {[%emt 00:00:21]} R8h2+ {[%clk 00:36:45]}
{[%emt 00:00:34]} 35. Ke1 {[%clk 01:16:27]} {[%emt 00:00:08]} Rxf1+ {[%clk
00:36:17]} {[%emt 00:00:59]} 36. Kxf1 {[%clk 01:16:47]} {[%emt 00:00:10]} Rxa2
{[%clk 00:36:21]} {[%emt 00:00:26]} 37. Rh5 {[%clk 01:16:58]} {[%emt 00:00:18]}
Rd2 {[%clk 00:29:03]} {[%emt 00:07:49]} 38. Rh6+ {[%clk 01:16:59]} {[%emt
00:00:28]} Kg7 {[%clk 00:28:55]} {[%emt 00:00:38]} 39. g5 {[%clk 01:16:45]}
{[%emt 00:00:44]} Rxd4 {[%clk 00:28:28]} {[%emt 00:00:58]} 40. Rh4 {[%clk
01:17:05]} {[%emt 00:00:09]} e5 {[%clk 00:27:23]} {[%emt 00:01:35]} 41. g6
{[%clk 01:16:46]} {[%emt 00:00:49]} Rxf4+ {[%clk 00:27:05]} {[%emt 00:00:48]}
0-1